,Portfolio,Expense Area,Cost Centre,Expense Type,Account Code,Amount,Supplier Name,SupplierId,Pay Date,Transaction No.,,VAT No.,Co. Reg. No.,VAT No.,Voucher Type,�,Trans Date,
INSERTED DETAIL,Resources & Corporate Governance ,Toilet Cleaning,WBC01,Materials,0303,550.62,Arco Limited,100015,28/08/2014,10205176,TC,166911546,,166911546,PI,669.53,21/07/2014,
INSERTED DETAIL,Resources & Corporate Governance ,Domestic Waste Collection,WWC00,Personal Protective Clothing,0340,7.32,Arco Limited,100015,28/08/2014,10205176,TC,166911546,,166911546,PI,669.53,21/07/2014,
INSERTED DETAIL,Resources & Corporate Governance,Housing Maintenance,WHM00,Materials,0303,251.76,Arco Limited,100015,28/08/2014,10205177,TC,166911546,,166911546,PI,846.29,21/07/2014,
INSERTED DETAIL,Resources & Corporate Governance ,WSU Depot,WDP00,Messing Facilities,0332,453.48,Arco Limited,100015,28/08/2014,10205177,TC,166911546,,166911546,PI,846.29,21/07/2014,
INSERTED DETAIL,Housing Revenue Account ,Unplanned Maintenance and Repair,UMR00,R&M External Contractors,0100,3951.27,AWM Electrical Contractors Ltd,100051,07/08/2014,10205507,CS,661675907,7430696,661675907,PN,4741.52,25/07/2014,
INSERTED DETAIL,Housing Revenue Account ,Unplanned Maintenance and Repair,UMR00,R&M External Contractors,0100,739.92,AWM Electrical Contractors Ltd,100051,07/08/2014,10205682,CS,661675907,7430696,661675907,PN,887.9,30/07/2014,
INSERTED DETAIL,Housing Revenue Account ,Repairs and Maintenance - Void works,UMR09,R&M External Contractors,0100,574.85,AWM Electrical Contractors Ltd,100051,07/08/2014,10205683,CS,661675907,7430696,661675907,PN,689.82,30/07/2014,
INSERTED DETAIL,Sustainable Inclusive Communities,Woodside Park,TVR00,R&M External Contractors,0100,45.97,AWM Electrical Contractors Ltd,100051,07/08/2014,10205686,CS,661675907,7430696,661675907,PN,706.9,30/07/2014,
INSERTED DETAIL,Housing Revenue Account ,Unplanned Maintenance and Repair,UMR00,R&M External Contractors,0100,543.11,AWM Electrical Contractors Ltd,100051,07/08/2014,10205686,CS,661675907,7430696,661675907,PN,706.9,30/07/2014,
INSERTED DETAIL,Housing Revenue Account ,Unplanned Maintenance and Repair,UMR00,R&M External Contractors,0100,510.37,AWM Electrical Contractors Ltd,100051,07/08/2014,10205713,CS,661675907,7430696,661675907,PN,612.44,01/08/2014,
INSERTED DETAIL,Housing Revenue Account ,Unplanned Maintenance and Repair,UMR00,R&M External Contractors,0100,1270.33,AWM Electrical Contractors Ltd,100051,14/08/2014,10205957,CS,661675907,7430696,661675907,PN,1524.4,08/08/2014,
INSERTED DETAIL,Housing Revenue Account ,Unplanned Maintenance and Repair,UMR00,R&M External Contractors,0100,1264.69,AWM Electrical Contractors Ltd,100051,14/08/2014,10206088,CS,661675907,7430696,661675907,PN,1517.63,12/08/2014,
INSERTED DETAIL,Housing Revenue Account ,Unplanned Maintenance and Repair,UMR00,R&M External Contractors,0100,1402.40,AWM Electrical Contractors Ltd,100051,21/08/2014,10206145,CS,661675907,7430696,661675907,PN,1682.88,12/08/2014,
INSERTED DETAIL,Housing Revenue Account ,Unplanned Maintenance and Repair,UMR00,R&M External Contractors,0100,10.14,AWM Electrical Contractors Ltd,100051,21/08/2014,10206148,CS,661675907,7430696,661675907,PN,2706.37,12/08/2014,
INSERTED DETAIL,Housing Revenue Account ,Repairs and Maintenance - Void works,UMR09,R&M External Contractors,0100,2245.17,AWM Electrical Contractors Ltd,100051,21/08/2014,10206148,CS,661675907,7430696,661675907,PN,2706.37,12/08/2014,
INSERTED DETAIL,Housing Revenue Account ,Unplanned Maintenance and Repair,UMR00,R&M External Contractors,0100,1638.06,AWM Electrical Contractors Ltd,100051,21/08/2014,10206153,CS,661675907,7430696,661675907,PN,1965.67,12/08/2014,
INSERTED DETAIL,Housing Revenue Account ,Unplanned Maintenance and Repair,UMR00,R&M External Contractors,0100,752.90,AWM Electrical Contractors Ltd,100051,21/08/2014,10206256,CS,661675907,7430696,661675907,PN,903.48,15/08/2014,
INSERTED DETAIL,Housing Revenue Account ,Unplanned Maintenance and Repair,UMR00,R&M External Contractors,0100,2699.17,AWM Electrical Contractors Ltd,100051,21/08/2014,10206513,CS,661675907,7430696,661675907,PN,3239,20/08/2014,
INSERTED DETAIL,Housing Revenue Account ,Unplanned Maintenance and Repair,UMR00,R&M External Contractors,0100,468.78,AWM Electrical Contractors Ltd,100051,21/08/2014,10206514,CS,661675907,7430696,661675907,PN,562.54,20/08/2014,
INSERTED DETAIL,Housing Revenue Account ,Unplanned Maintenance and Repair,UMR00,R&M External Contractors,0100,771.76,AWM Electrical Contractors Ltd,100051,21/08/2014,10206537,CS,661675907,7430696,661675907,PN,926.11,20/08/2014,
INSERTED DETAIL,Housing Revenue Account ,Repairs and Maintenance - Void works,UMR09,R&M External Contractors,0100,781.32,AWM Electrical Contractors Ltd,100051,28/08/2014,10206871,CS,661675907,7430696,661675907,PN,937.58,27/08/2014,
INSERTED DETAIL,Resources & Corporate Governance ,Council Tax and NNDR Collection,CTX01,External Contractor & Operator,0742,150.61,Bristow & Sutor,100159,14/08/2014,10206193,TC,294694111,,294694111,PN,725.1,13/08/2014,
INSERTED DETAIL,Resources & Corporate Governance ,Council Tax and NNDR Collection,CTX01,External Contractor & Operator,0742,313.70,Bristow & Sutor,100159,21/08/2014,10206461,TC,294694111,,294694111,PN,853.45,19/08/2014,
INSERTED DETAIL,Resources & Corporate Governance ,Council Tax and NNDR Collection,CTX01,External Contractor & Operator,0742,394.04,Bristow & Sutor,100159,28/08/2014,10206743,TC,294694111,,294694111,PN,885.06,26/08/2014,
INSERTED DETAIL,Resources & Corporate Governance ,Central Telephone Service,TEL00,Telephone Expenses,0371,3214.00,British Telecommunications Plc,100161,14/08/2014,10206079,TC,245719348,,245719348,PN,3856.8,12/08/2014,
INSERTED DETAIL,Housing Revenue Account ,Sheltered Housing,AGP00,Telephone Expenses,0371,4485.30,British Telecommunications Plc,100161,28/08/2014,10206445,TC,245719348,,245719348,PN,5686.36,19/08/2014,
INSERTED DETAIL,Housing Revenue Account ,Multi-Storey Flats,MSF00,Telephone Expenses,0371,84.91,British Telecommunications Plc,100161,28/08/2014,10206445,TC,245719348,,245719348,PN,5686.36,19/08/2014,
INSERTED DETAIL,Resources & Corporate Governance ,Town Hall,OFF00,Telephone Expenses,0371,59.97,British Telecommunications Plc,100161,28/08/2014,10206445,TC,245719348,,245719348,PN,5686.36,19/08/2014,
INSERTED DETAIL,Sustainable Inclusive Communities,Woodside Park,TVR00,Telephone Expenses,0371,108.46,British Telecommunications Plc,100161,28/08/2014,10206445,TC,245719348,,245719348,PN,5686.36,19/08/2014,
INSERTED DETAIL,Capital Programme ,Private Sector Renovation Loans,REN00,Capital Contract Payments,5000,1649.95,D T Wall (Roofing) Ltd,100182,14/08/2014,10205941,TC,485551910,,485551910,PN,1649.95,08/08/2014,
INSERTED DETAIL,Resources & Corporate Governance,Corporate Property R&M,CPA01,R&M External Contractors,0100,725.00,Chillaire Service & Maintenance Ltd,100305,07/08/2014,10205553,TC,806802244,4622016,806802244,PN,870,29/07/2014,
INSERTED DETAIL,Resources & Corporate Governance,Corporate Property R&M,CPA01,R&M External Contractors,0100,449.25,Chillaire Service & Maintenance Ltd,100305,21/08/2014,10206298,TC,806802244,4622016,806802244,PN,539.1,15/08/2014,
INSERTED DETAIL,Economy Development & Culture,Economic Development General,ECD00,Development Activities,0450,1200.00,Coventry & Warwickshire Chamber Of Commerce,100412,21/08/2014,10206310,TC,729947967,,729947967,PN,1440,15/08/2014,
INSERTED DETAIL,Resources & Corporate Governance,Corporate Property R&M,CPA01,R&M External Contractors,0100,649.66,Contract Fire Systems Ltd,100425,07/08/2014,10205694,CS,431319187,1915681,431319187,PN,779.59,31/07/2014,
INSERTED DETAIL,Sustainable Environment ,Clinical Waste,REF04,External Contractor & Operator,0742,493.65,OCS Group UK Ltd t/a Cannon,100436,28/08/2014,10206597,TC,238034379,,238 0343 79,PI,592.38,22/08/2014,
INSERTED DETAIL,Economy Development & Culture,AGM Conservation/Documentation,AGM01,Other Miscellaneous Expenses,0444,484.58,Conservation Resources (UK) Ltd,100445,07/08/2014,10205465,TC,GB340609281,,GB340609281,PI,581.5,28/07/2014,
INSERTED DETAIL,Capital Programme ,Bathroom Modifications,HIS01,Capital Contract Payments,5000,7485.00,JADA Building & Maintenance Services Ltd,100583,21/08/2014,10206345,CS,976219387,6828138,976219387,PN,8982,15/08/2014,
INSERTED DETAIL,Housing Revenue Account ,Repairs and Maintenance - Void works,UMR09,R&M External Contractors,0100,1185.56,Dulux Decorator Centres,100597,14/08/2014,10206027,TC,238458241,,238458241,PN,1422.85,12/08/2014,
INSERTED DETAIL,Economy Development & Culture,The Benn Hall,BHL00,New Equipment,0300,579.00,ESPO,100641,14/08/2014,10206002,TC,705180561,,705180561,PI,694.8,11/08/2014,
INSERTED DETAIL,Sustainable Environment,Crematorium,CRM00,Gas,0131,2231.65,ESPO,100641,21/08/2014,10206320,TC,705180561,,705180561,PN,2677.98,14/08/2014,
INSERTED DETAIL,Resources & Corporate Governance,Corporate Property Central Utilities,CPA02,Gas,0131,550.09,ESPO,100641,21/08/2014,10206322,TC,705180561,,705180561,PN,660.1,14/08/2014,
INSERTED DETAIL,Resources & Corporate Governance,Corporate Property Central Utilities,CPA02,Gas,0131,898.94,ESPO,100641,21/08/2014,10206330,TC,705180561,,705180561,PN,1078.73,15/08/2014,
INSERTED DETAIL,Housing Revenue Account ,Tanser Court AP,AGP17,Gas,0131,924.38,ESPO,100641,21/08/2014,10206340,TC,705180561,,705180561,PN,1109.26,15/08/2014,
INSERTED DETAIL,Housing Revenue Account ,Lesley Souter House AP,AGP16,Gas,0131,596.17,ESPO,100641,21/08/2014,10206341,TC,705180561,,705180561,PN,715.4,15/08/2014,
INSERTED DETAIL,Housing Revenue Account ,Albert Square AP,AGP20,Gas,0131,757.80,ESPO,100641,21/08/2014,10206342,TC,705180561,,705180561,PN,909.36,15/08/2014,
INSERTED DETAIL,Resources & Corporate Governance ,Domestic Waste Collection,WWC00,External Contractor & Operator,0742,594.05,Container Services UK Limited,100811,28/08/2014,10206517,TC,585011355,,585 0113 55,PN,1425.72,19/08/2014,
INSERTED DETAIL,Resources & Corporate Governance ,Trade Waste Collection,WWC01,External Contractor & Operator,0742,594.05,Container Services UK Limited,100811,28/08/2014,10206517,TC,585011355,,585 0113 55,PN,1425.72,19/08/2014,
INSERTED DETAIL,Resources & Corporate Governance ,Garage Internal,WVR01,Materials,0303,2451.00,Fuchs Lubricants (UK) Plc,100832,28/08/2014,10206137,TC,284166443,2412689,284166443,PI,2941.2,13/08/2014,
INSERTED DETAIL,Resources & Corporate Governance ,Town Hall,OFF00,Materials,0303,523.92,Greenham,100890,14/08/2014,10205797,TC,823820932,2902454,823820932,PI,628.71,06/08/2014,
INSERTED DETAIL,Resources & Corporate Governance ,Town Hall,OFF00,Materials,0303,913.94,Greenham,100890,21/08/2014,10206240,TC,823820932,2902454,823820932,PI,1096.73,15/08/2014,
INSERTED DETAIL,Resources & Corporate Governance ,Corporate Property Management,CPM00,Asset Management Expenses,0448,1000.00,Godfrey-Payton Chartered Surveyors,100937,07/08/2014,10205351,TC,272440179,,272440179,PN,1200,24/07/2014,
INSERTED DETAIL,Resources & Corporate Governance ,Corporate Property Management,CPM00,Asset Management Expenses,0448,1112.50,Godfrey-Payton Chartered Surveyors,100937,07/08/2014,10205688,TC,272440179,,272440179,PN,1335,31/07/2014,
INSERTED DETAIL,Resources & Corporate Governance ,Corporate Property Management,CPM00,Asset Management Expenses,0448,2400.00,Godfrey-Payton Chartered Surveyors,100937,07/08/2014,10205689,TC,272440179,,272440179,PN,2880,31/07/2014,
INSERTED DETAIL,Resources & Corporate Governance ,Human Resources Centralised Services,RES31,Recruitment Expenses,0012,1185.20,TMP (UK) LTD,100972,21/08/2014,10206005,TC,872904502,,872904502,PI,1422.24,08/08/2014,
INSERTED DETAIL,Resources & Corporate Governance ,Human Resources Centralised Services,RES31,Recruitment Expenses,0012,985.00,TMP (UK) LTD,100972,21/08/2014,10206522,TC,872904502,,872904502,PI,1182,19/08/2014,
INSERTED DETAIL,Resources & Corporate Governance ,Town Hall,OFF00,New Equipment,0300,510.71,IE Office Equipment Ltd,101114,07/08/2014,10205650,TC,661544339,,661544339,PI,612.85,01/08/2014,
INSERTED DETAIL,Resources & Corporate Governance ,Town Hall,OFF00,New Equipment,0300,1275.48,IE Office Equipment Ltd,101114,28/08/2014,10206708,TC,661544339,,661544339,PI,1530.58,26/08/2014,
INSERTED DETAIL,Capital Programme ,Lifeline Renewal Programme,HCE21,Capital Contract Payments,5000,10000.00,Chubb Systems LTD,101154,21/08/2014,10206216,TC,439475808,,4394 75808,PI,12000,14/08/2014,
INSERTED DETAIL,Sustainable Environment,Regulatory Services,REG00,External Contractor & Operator,0742,690.00,Applied Geology,101155,07/08/2014,10205645,TC,973482486,6882453,973482486,PI,828,30/07/2014,
INSERTED DETAIL,Resources & Corporate Governance ,Street Cleansing,WSC00,Materials,0303,551.65,Imperial Polythene Products Limited,101157,14/08/2014,10205664,TC,635907225,,635 9072 25,PI,661.98,01/08/2014,
INSERTED DETAIL,Resources & Corporate Governance ,Street Cleansing,WSC00,Materials,0303,616.56,Imperial Polythene Products Limited,101157,14/08/2014,10205778,TC,635907225,,635 9072 25,PI,739.87,06/08/2014,
INSERTED DETAIL,Resources & Corporate Governance ,Street Cleansing,WSC00,External Contractor & Operator,0742,435.00,Clews Recycling Limited,101213,21/08/2014,10206111,TC,747316619,,747316619,PN,522,07/08/2014,
INSERTED DETAIL,Resources & Corporate Governance ,Grounds Maintenance,WGM00,External Contractor & Operator,0742,7484.00,K A Hicks,101216,28/08/2014,10205582,TC,GB661214562,,GB661214562,PN,8980.8,30/07/2014,
INSERTED DETAIL,Resources & Corporate Governance ,Grounds Maintenance,WGM00,External Contractor & Operator,0742,7484.00,K A Hicks,101216,28/08/2014,10205583,TC,GB661214562,,GB661214562,PN,8980.8,30/07/2014,
INSERTED DETAIL,Sustainable Environment ,Land Drainage General,LDR00,Contract Hire,0220,146.66,M & J Engineers Ltd,101278,28/08/2014,10204500,TC,231780868,,231780868,PI,528,07/07/2014,
INSERTED DETAIL,Resources & Corporate Governance ,Highways,WHG00,Contract Hire,0220,293.34,M & J Engineers Ltd,101278,28/08/2014,10204500,TC,231780868,,231780868,PI,528,07/07/2014,
INSERTED DETAIL,Resources & Corporate Governance ,Highways,WHG00,Materials,0303,28.53,Melbros Ltd,101291,07/08/2014,10204367,TC,420820590,,420820590,PN,760.12,03/07/2014,
INSERTED DETAIL,Resources & Corporate Governance,Housing Maintenance,WHM00,Materials,0303,604.90,Melbros Ltd,101291,07/08/2014,10204367,TC,420820590,,420820590,PN,760.12,03/07/2014,
INSERTED DETAIL,Resources & Corporate Governance,Housing Maintenance,WHM00,Materials,0303,693.15,Melbros Ltd,101291,21/08/2014,10205660,TC,420820590,,420820590,PI,831.78,01/08/2014,
INSERTED DETAIL,Economy Development & Culture,Street Furniture,HIG01,External Contractor & Operator,0742,2026.75,Midland Signs (Leicester) Ltd,101295,14/08/2014,10206012,TC,399669755,1778323,399669755,PI,2432.1,08/08/2014,
INSERTED DETAIL,Economy Development & Culture,Visitor Centre,VSC00,Events Tickets - Zero Rated,1405,1593.86,National Express Ltd,101392,07/08/2014,10205830,TC,487038714,,487038714,PN,1593.86,06/08/2014,
INSERTED DETAIL,Housing Revenue Account ,Sheltered Housing,AGP00,Telephone Expenses,0371,43.49,EE Ltd t/a Orange Personal Communications,101404,21/08/2014,10206130,TC,529221751,,529221751,PN,517.32,13/08/2014,
INSERTED DETAIL,Economy Development & Culture,Building Control Services,BCS00,Telephone Expenses,0371,0.06,EE Ltd t/a Orange Personal Communications,101404,21/08/2014,10206130,TC,529221751,,529221751,PN,517.32,13/08/2014,
INSERTED DETAIL,Economy Development & Culture,Building Control Services Non-Fee Earning Account,BCS01,Telephone Expenses,0371,0.04,EE Ltd t/a Orange Personal Communications,101404,21/08/2014,10206130,TC,529221751,,529221751,PN,517.32,13/08/2014,
INSERTED DETAIL,Economy Development & Culture,Building Regulation Fee Earning Account,BCS99,Telephone Expenses,0371,13.90,EE Ltd t/a Orange Personal Communications,101404,21/08/2014,10206130,TC,529221751,,529221751,PN,517.32,13/08/2014,
INSERTED DETAIL,Economy Development & Culture,The Benn Hall,BHL00,Telephone Expenses,0371,2.00,EE Ltd t/a Orange Personal Communications,101404,21/08/2014,10206130,TC,529221751,,529221751,PN,517.32,13/08/2014,
INSERTED DETAIL,Resources & Corporate Governance ,"Communications, Consultation and Information Team",BTR20,Telephone Expenses,0371,8.00,EE Ltd t/a Orange Personal Communications,101404,21/08/2014,10206130,TC,529221751,,529221751,PN,517.32,13/08/2014,
INSERTED DETAIL,Sustainable Environment ,Crime and Disorder Activities,CAD00,Telephone Expenses,0371,2.27,EE Ltd t/a Orange Personal Communications,101404,21/08/2014,10206130,TC,529221751,,529221751,PN,517.32,13/08/2014,
INSERTED DETAIL,Sustainable Environment ,East European Violence Project,CAD32,Telephone Expenses,0371,2.00,EE Ltd t/a Orange Personal Communications,101404,21/08/2014,10206130,TC,529221751,,529221751,PN,517.32,13/08/2014,
INSERTED DETAIL,Housing Revenue Account ,Control Centre (HRA),CCE00,Telephone Expenses,0371,2.00,EE Ltd t/a Orange Personal Communications,101404,21/08/2014,10206130,TC,529221751,,529221751,PN,517.32,13/08/2014,
INSERTED DETAIL,Sustainable Environment ,Cemeteries General,CEM00,Telephone Expenses,0371,12.00,EE Ltd t/a Orange Personal Communications,101404,21/08/2014,10206130,TC,529221751,,529221751,PN,517.32,13/08/2014,
INSERTED DETAIL,Resources & Corporate Governance ,ITC & Support Services,CIS10,Telephone Expenses,0371,54.44,EE Ltd t/a Orange Personal Communications,101404,21/08/2014,10206130,TC,529221751,,529221751,PN,517.32,13/08/2014,
INSERTED DETAIL,Economy Development & Culture,Car Parks General,CPK01,Telephone Expenses,0371,5.20,EE Ltd t/a Orange Personal Communications,101404,21/08/2014,10206130,TC,529221751,,529221751,PN,517.32,13/08/2014,
INSERTED DETAIL,Economy Development & Culture,Decrim. of Car Parking on street parking,DPE02,Telephone Expenses,0371,20.80,EE Ltd t/a Orange Personal Communications,101404,21/08/2014,10206130,TC,529221751,,529221751,PN,517.32,13/08/2014,
INSERTED DETAIL,Resources & Corporate Governance ,Safety and Resilience,EPL00,Telephone Expenses,0371,6.00,EE Ltd t/a Orange Personal Communications,101404,21/08/2014,10206130,TC,529221751,,529221751,PN,517.32,13/08/2014,
INSERTED DETAIL,Economy Development & Culture,Sports and Recreation,LSD03,Telephone Expenses,0371,2.00,EE Ltd t/a Orange Personal Communications,101404,21/08/2014,10206130,TC,529221751,,529221751,PN,517.32,13/08/2014,
INSERTED DETAIL,Economy Development & Culture,Positive Futures,LSD04,Telephone Expenses,0371,10.01,EE Ltd t/a Orange Personal Communications,101404,21/08/2014,10206130,TC,529221751,,529221751,PN,517.32,13/08/2014,
INSERTED DETAIL,Economy Development & Culture,Play Projects (revenue),LSD09,Telephone Expenses,0371,4.00,EE Ltd t/a Orange Personal Communications,101404,21/08/2014,10206130,TC,529221751,,529221751,PN,517.32,13/08/2014,
INSERTED DETAIL,Economy Development & Culture,Family Lifestyle Project,LSD11,Telephone Expenses,0371,2.00,EE Ltd t/a Orange Personal Communications,101404,21/08/2014,10206130,TC,529221751,,529221751,PN,517.32,13/08/2014,
INSERTED DETAIL,Housing Revenue Account ,Supervision and Management General,MAN00,Telephone Expenses,0371,39.33,EE Ltd t/a Orange Personal Communications,101404,21/08/2014,10206130,TC,529221751,,529221751,PN,517.32,13/08/2014,
INSERTED DETAIL,Housing Revenue Account ,Property Maintenance,MAN23,Telephone Expenses,0371,18.28,EE Ltd t/a Orange Personal Communications,101404,21/08/2014,10206130,TC,529221751,,529221751,PN,517.32,13/08/2014,
INSERTED DETAIL,Housing Revenue Account ,Multi-Storey Flats,MSF00,Telephone Expenses,0371,3.00,EE Ltd t/a Orange Personal Communications,101404,21/08/2014,10206130,TC,529221751,,529221751,PN,517.32,13/08/2014,
INSERTED DETAIL,Economy Development & Culture,Planning General/Income,PLN00,Telephone Expenses,0371,6.00,EE Ltd t/a Orange Personal Communications,101404,21/08/2014,10206130,TC,529221751,,529221751,PN,517.32,13/08/2014,
INSERTED DETAIL,Economy Development & Culture,Planning Management,PLN06,Telephone Expenses,0371,10.00,EE Ltd t/a Orange Personal Communications,101404,21/08/2014,10206130,TC,529221751,,529221751,PN,517.32,13/08/2014,
INSERTED DETAIL,Sustainable Environment,Regulatory Services,REG00,Telephone Expenses,0371,77.98,EE Ltd t/a Orange Personal Communications,101404,21/08/2014,10206130,TC,529221751,,529221751,PN,517.32,13/08/2014,
INSERTED DETAIL,Resources & Corporate Governance ,Head of Resources,RES00,Telephone Expenses,0371,15.00,EE Ltd t/a Orange Personal Communications,101404,21/08/2014,10206130,TC,529221751,,529221751,PN,517.32,13/08/2014,
INSERTED DETAIL,Sustainable Inclusive Communities,Woodside Park,TVR00,Telephone Expenses,0371,3.10,EE Ltd t/a Orange Personal Communications,101404,21/08/2014,10206130,TC,529221751,,529221751,PN,517.32,13/08/2014,
INSERTED DETAIL,Resources & Corporate Governance ,WSU Depot,WDP00,Telephone Expenses,0371,86.83,EE Ltd t/a Orange Personal Communications,101404,21/08/2014,10206130,TC,529221751,,529221751,PN,517.32,13/08/2014,
INSERTED DETAIL,Resources & Corporate Governance,Housing Maintenance,WHM00,Telephone Expenses,0371,-15.29,EE Ltd t/a Orange Personal Communications,101404,21/08/2014,10206130,TC,529221751,,529221751,PN,517.32,13/08/2014,
INSERTED DETAIL,Resources & Corporate Governance,Central Business Support Services,CSS15,External Printing,0352,930.00,Polycopy,101428,21/08/2014,10206478,TC,115912486,,115912486,PI,1116,19/08/2014,
INSERTED DETAIL,Resources & Corporate Governance ,Highways,WHG00,Vehicle Running Costs,0201,875.00,Post Office Ltd,101429,21/08/2014,10206422,NT,,,,PN,875,19/08/2014,
INSERTED DETAIL,Sustainable Inclusive Communities,Sewage Disposal Plant,SDP00,R&M External Contractors,0100,520.28,PJT Pumping Services,101438,14/08/2014,10205979,CS,618143943,,618143943,PN,624.33,08/08/2014,
INSERTED DETAIL,Sustainable Environment ,Parks,PKS00,R&M External Contractors,0100,512.52,PJT Pumping Services,101438,14/08/2014,10206129,CS,618143943,,618143943,PN,615.03,06/08/2014,
INSERTED DETAIL,Capital Programme ,Bathroom Modifications,HIS01,Capital Contract Payments,5000,8014.00,Reeds Plumbing & Heating Contractors Ltd,101504,07/08/2014,10205687,CS,418584732,4468782,418 5847 32,PN,9616.8,30/07/2014,
INSERTED DETAIL,Capital Programme ,Disabled Adaptations,HCR01,Capital Contract Payments,5000,2700.00,Reeds Plumbing & Heating Contractors Ltd,101504,14/08/2014,10206029,CS,418584732,4468782,418 5847 32,PN,3556.8,12/08/2014,
INSERTED DETAIL,Capital Programme ,Bathroom Modifications,HIS01,Capital Contract Payments,5000,264.00,Reeds Plumbing & Heating Contractors Ltd,101504,14/08/2014,10206029,CS,418584732,4468782,418 5847 32,PN,3556.8,12/08/2014,
INSERTED DETAIL,Housing Revenue Account ,Property Maintenance,MAN23,Agency Staff,0003,488.86,Rugby Recruitment Services Ltd,101521,07/08/2014,10205675,TC,485523818,,485523818,PN,586.63,31/07/2014,
INSERTED DETAIL,Economy Development & Culture,Art Gallery and Museum,AGM00,Postage & Distribution,0370,3.93,Royal Mail,101554,07/08/2014,10205708,TC,,,,PN,1943.75,31/07/2014,
INSERTED DETAIL,Economy Development & Culture,Building Control Services,BCS00,Postage & Distribution,0370,1.06,Royal Mail,101554,07/08/2014,10205708,TC,,,,PN,1943.75,31/07/2014,
INSERTED DETAIL,Economy Development & Culture,Building Control Services Non-Fee Earning Account,BCS01,Postage & Distribution,0370,1.06,Royal Mail,101554,07/08/2014,10205708,TC,,,,PN,1943.75,31/07/2014,
INSERTED DETAIL,Economy Development & Culture,Building Regulation Fee Earning Account,BCS99,Postage & Distribution,0370,19.07,Royal Mail,101554,07/08/2014,10205708,TC,,,,PN,1943.75,31/07/2014,
INSERTED DETAIL,Economy Development & Culture,Car Parks General,CPK01,Postage & Distribution,0370,38.81,Royal Mail,101554,07/08/2014,10205708,TC,,,,PN,1943.75,31/07/2014,
INSERTED DETAIL,Resources & Corporate Governance,Central Business Support Services,CSS15,Postage & Distribution,0370,235.42,Royal Mail,101554,07/08/2014,10205708,TC,,,,PN,1943.75,31/07/2014,
INSERTED DETAIL,Resources & Corporate Governance ,Council Tax and NNDR Collection,CTX01,Postage & Distribution,0370,425.33,Royal Mail,101554,07/08/2014,10205708,TC,,,,PN,1943.75,31/07/2014,
INSERTED DETAIL,Economy Development & Culture,Decrim. of Car Parking on street parking,DPE02,Postage & Distribution,0370,155.23,Royal Mail,101554,07/08/2014,10205708,TC,,,,PN,1943.75,31/07/2014,
INSERTED DETAIL,Sustainable Inclusive Communities,Housing Benefit Administration,HBA00,Postage & Distribution,0370,249.74,Royal Mail,101554,07/08/2014,10205708,TC,,,,PN,1943.75,31/07/2014,
INSERTED DETAIL,Housing Revenue Account ,Supervision and Management General,MAN00,Postage & Distribution,0370,296.08,Royal Mail,101554,07/08/2014,10205708,TC,,,,PN,1943.75,31/07/2014,
INSERTED DETAIL,Economy Development & Culture,Planning General/Income,PLN00,Postage & Distribution,0370,186.22,Royal Mail,101554,07/08/2014,10205708,TC,,,,PN,1943.75,31/07/2014,
INSERTED DETAIL,Resources & Corporate Governance ,General Administration,WAD00,Postage & Distribution,0370,7.84,Royal Mail,101554,07/08/2014,10205708,TC,,,,PN,1943.75,31/07/2014,
INSERTED DETAIL,Economy Development & Culture,Art Gallery and Museum,AGM00,Postage & Distribution,0370,61.07,Royal Mail,101554,21/08/2014,10206296,TC,,,,PN,1961.71,15/08/2014,
INSERTED DETAIL,Economy Development & Culture,Building Control Services,BCS00,Postage & Distribution,0370,1.21,Royal Mail,101554,21/08/2014,10206296,TC,,,,PN,1961.71,15/08/2014,
INSERTED DETAIL,Economy Development & Culture,Building Control Services Non-Fee Earning Account,BCS01,Postage & Distribution,0370,1.21,Royal Mail,101554,21/08/2014,10206296,TC,,,,PN,1961.71,15/08/2014,
INSERTED DETAIL,Economy Development & Culture,Building Regulation Fee Earning Account,BCS99,Postage & Distribution,0370,21.78,Royal Mail,101554,21/08/2014,10206296,TC,,,,PN,1961.71,15/08/2014,
INSERTED DETAIL,Economy Development & Culture,Car Parks General,CPK01,Postage & Distribution,0370,48.22,Royal Mail,101554,21/08/2014,10206296,TC,,,,PN,1961.71,15/08/2014,
INSERTED DETAIL,Resources & Corporate Governance,Central Business Support Services,CSS15,Postage & Distribution,0370,469.56,Royal Mail,101554,21/08/2014,10206296,TC,,,,PN,1961.71,15/08/2014,
INSERTED DETAIL,Resources & Corporate Governance ,Council Tax and NNDR Collection,CTX01,Postage & Distribution,0370,255.74,Royal Mail,101554,21/08/2014,10206296,TC,,,,PN,1961.71,15/08/2014,
INSERTED DETAIL,Economy Development & Culture,Decrim. of Car Parking on street parking,DPE02,Postage & Distribution,0370,192.86,Royal Mail,101554,21/08/2014,10206296,TC,,,,PN,1961.71,15/08/2014,
INSERTED DETAIL,Resources & Corporate Governance ,Electoral Registration,ERG00,Postage & Distribution,0370,4.17,Royal Mail,101554,21/08/2014,10206296,TC,,,,PN,1961.71,15/08/2014,
INSERTED DETAIL,Sustainable Inclusive Communities,Housing Benefit Administration,HBA00,Postage & Distribution,0370,231.50,Royal Mail,101554,21/08/2014,10206296,TC,,,,PN,1961.71,15/08/2014,
INSERTED DETAIL,Housing Revenue Account ,Supervision and Management General,MAN00,Postage & Distribution,0370,43.90,Royal Mail,101554,21/08/2014,10206296,TC,,,,PN,1961.71,15/08/2014,
INSERTED DETAIL,Economy Development & Culture,Planning General/Income,PLN00,Postage & Distribution,0370,301.23,Royal Mail,101554,21/08/2014,10206296,TC,,,,PN,1961.71,15/08/2014,
INSERTED DETAIL,Resources & Corporate Governance ,General Administration,WAD00,Postage & Distribution,0370,2.31,Royal Mail,101554,21/08/2014,10206296,TC,,,,PN,1961.71,15/08/2014,
INSERTED DETAIL,Resources & Corporate Governance ,WSU Depot,WDP00,Water Services,0143,5685.01,Severn Trent Water Ltd,101610,28/08/2014,10206198,TC,,,,PN,5685.01,12/08/2014,
INSERTED DETAIL,Sustainable Inclusive Communities,Woodside Park,TVR00,Water Services,0143,1959.52,Severn Trent Water Ltd,101610,28/08/2014,10206653,TC,,,,PN,1959.52,22/08/2014,
INSERTED DETAIL,Capital Programme ,Disabled Facilities Grant,REN01,Capital Grants,5014,1916.00,Stannah Stairlifts Ltd,101623,07/08/2014,10205398,CS,236778328,,236778328,PN,1916,29/07/2014,
INSERTED DETAIL,Sustainable Inclusive Communities,CL Grants,CGS00,Grants To Voluntary Organisations,0720,1000.00,St Peter's & St John's Church,101651,07/08/2014,10205407,TC,,,,PN,1000,29/07/2014,
INSERTED DETAIL,Resources & Corporate Governance,Housing Maintenance,WHM00,Materials,0303,3874.93,Travis Perkins Trading Co Ltd,101732,14/08/2014,10205066,TC,408556737,,408556737,PN,4649.89,17/07/2014,
INSERTED DETAIL,Housing Revenue Account ,Unplanned Maintenance and Repair,UMR00,R&M External Contractors,0100,585.90,Travis Perkins Trading Co Ltd,101732,07/08/2014,10205114,TC,408556737,,408556737,PN,703.08,18/07/2014,
INSERTED DETAIL,Resources & Corporate Governance,Housing Maintenance,WHM00,Materials,0303,4388.84,Travis Perkins Trading Co Ltd,101732,28/08/2014,10205380,TC,408556737,,408556737,PN,5265.69,24/07/2014,
INSERTED DETAIL,Resources & Corporate Governance ,Domestic Waste Collection,WWC00,Vehicle Running Costs,0201,704.00,HI-Q Motorway,101736,07/08/2014,10205374,TC,100159429,,100159429,PI,1548,28/07/2014,
INSERTED DETAIL,Resources & Corporate Governance ,Trade Waste Collection,WWC01,Vehicle Running Costs,0201,586.00,HI-Q Motorway,101736,07/08/2014,10205374,TC,100159429,,100159429,PI,1548,28/07/2014,
INSERTED DETAIL,Resources & Corporate Governance ,Domestic Waste Collection,WWC00,Vehicle Running Costs,0201,732.00,HI-Q Motorway,101736,14/08/2014,10205744,TC,100159429,,100159429,PI,1645.2,06/08/2014,
INSERTED DETAIL,Resources & Corporate Governance ,Trade Waste Collection,WWC01,Vehicle Running Costs,0201,639.00,HI-Q Motorway,101736,14/08/2014,10205744,TC,100159429,,100159429,PI,1645.2,06/08/2014,
INSERTED DETAIL,Resources & Corporate Governance ,Street Cleansing,WSC00,Vehicle Running Costs,0201,73.00,HI-Q Motorway,101736,14/08/2014,10205753,TC,100159429,,100159429,PI,860.4,06/08/2014,
INSERTED DETAIL,Resources & Corporate Governance ,Domestic Waste Collection,WWC00,Vehicle Running Costs,0201,644.00,HI-Q Motorway,101736,14/08/2014,10205753,TC,100159429,,100159429,PI,860.4,06/08/2014,
INSERTED DETAIL,Resources & Corporate Governance ,Street Cleansing,WSC00,Vehicle Running Costs,0201,643.80,HI-Q Motorway,101736,28/08/2014,10205915,TC,100159429,,100159429,PI,1283.76,06/08/2014,
INSERTED DETAIL,Resources & Corporate Governance ,Domestic Waste Collection,WWC00,Vehicle Running Costs,0201,213.00,HI-Q Motorway,101736,28/08/2014,10205915,TC,100159429,,100159429,PI,1283.76,06/08/2014,
INSERTED DETAIL,Resources & Corporate Governance ,Trade Waste Collection,WWC01,Vehicle Running Costs,0201,213.00,HI-Q Motorway,101736,28/08/2014,10205915,TC,100159429,,100159429,PI,1283.76,06/08/2014,
INSERTED DETAIL,Resources & Corporate Governance ,TREE WORKS,WGM01,Vehicle Repair and Maintenance,0200,14.58,Tudor Environmental,101743,28/08/2014,10206446,TC,273748330,,273748330,PI,587.36,19/08/2014,
INSERTED DETAIL,Resources & Corporate Governance ,TREE WORKS,WGM01,Materials,0303,204.25,Tudor Environmental,101743,28/08/2014,10206446,TC,273748330,,273748330,PI,587.36,19/08/2014,
INSERTED DETAIL,Resources & Corporate Governance ,TREE WORKS,WGM01,Tools,0304,226.36,Tudor Environmental,101743,28/08/2014,10206446,TC,273748330,,273748330,PI,587.36,19/08/2014,
INSERTED DETAIL,Resources & Corporate Governance ,TREE WORKS,WGM01,Personal Protective Clothing,0340,53.12,Tudor Environmental,101743,28/08/2014,10206446,TC,273748330,,273748330,PI,587.36,19/08/2014,
INSERTED DETAIL,Resources & Corporate Governance ,Grounds Maintenance,WGM00,Tools,0304,594.50,Tudor Environmental,101743,28/08/2014,10206465,TC,273748330,,273748330,PI,713.4,15/08/2014,
INSERTED DETAIL,Resources & Corporate Governance ,Domestic Waste Collection,WWC00,Vehicle Repair and Maintenance,0200,4236.55,Terberg Matec UK,101761,07/08/2014,10205421,TC,560878510,,560 8785 10,PI,5083.86,25/07/2014,
INSERTED DETAIL,Economy Development & Culture,Decrim. of Car Parking on street parking,DPE02,Payments to Other Local Authorities,0710,131040.00,Warwickshire County Council,101893,28/08/2014,10205406,TC,272426659,,272426659,PN,131040,29/07/2014,
INSERTED DETAIL,Economy Development & Culture,Art Gallery and Museum,AGM00,Contract Cleaning,0170,3253.33,Warwickshire County Council,101893,21/08/2014,10205548,TC,272426659,,272426659,PN,3904,22/07/2014,
INSERTED DETAIL,CSW Superfast Broadband,CSW Superfast Broadband,RBB00,Capital Contract Payments,5000,2853.40,Warwickshire County Council,101893,28/08/2014,10206670,TC,272426659,,272426659,PN,2853.4,22/08/2014,
INSERTED DETAIL,Capital Programme ,Bathroom Modifications,HIS01,Capital Contract Payments,5000,2399.77,Adroit Services Ltd,101939,07/08/2014,10205506,CS,812650159,4729393,812650159,PN,2879.72,25/07/2014,
INSERTED DETAIL,Housing Revenue Account ,Unplanned Maintenance and Repair,UMR00,R&M External Contractors,0100,1410.87,Adroit Services Ltd,101939,07/08/2014,10205679,CS,812650159,4729393,812650159,PN,1693.04,30/07/2014,
INSERTED DETAIL,Housing Revenue Account ,Unplanned Maintenance and Repair,UMR00,R&M External Contractors,0100,101.95,Adroit Services Ltd,101939,07/08/2014,10205680,CS,812650159,4729393,812650159,PN,8761.51,30/07/2014,
INSERTED DETAIL,Capital Programme ,Bathroom Modifications,HIS01,Capital Contract Payments,5000,7199.31,Adroit Services Ltd,101939,07/08/2014,10205680,CS,812650159,4729393,812650159,PN,8761.51,30/07/2014,
INSERTED DETAIL,Housing Revenue Account ,Unplanned Maintenance and Repair,UMR00,R&M External Contractors,0100,2177.16,Adroit Services Ltd,101939,14/08/2014,10205961,CS,812650159,4729393,812650159,PN,6209.59,08/08/2014,
INSERTED DETAIL,Capital Programme ,Heating Upgrades,HIM01,Capital Contract Payments,5000,2765.00,Adroit Services Ltd,101939,14/08/2014,10205961,CS,812650159,4729393,812650159,PN,6209.59,08/08/2014,
INSERTED DETAIL,Capital Programme ,Bathroom Modifications,HIS01,Capital Contract Payments,5000,232.50,Adroit Services Ltd,101939,14/08/2014,10205961,CS,812650159,4729393,812650159,PN,6209.59,08/08/2014,
INSERTED DETAIL,Resources & Corporate Governance ,Grounds Maintenance,WGM00,Contract Hire,0220,637.05,TJS Self Drive Rugby,107992,28/08/2014,10205834,TC,316915651,1364047,316915651,PN,764.46,06/08/2014,
INSERTED DETAIL,Resources & Corporate Governance ,Maintenance of Customer Services Systems,CIS21,Software Maintenance,0374,1000.00,Bottomline Technologies Ltd,109434,28/08/2014,10204019,TC,724548231,898450,724548231,PN,1200,25/06/2014,
INSERTED DETAIL,Sustainable Environment ,Domestic Waste Collection/Recycling,REF00,Other Agencies,0734,5910.00,Environment Agency,109492,07/08/2014,10201880,TC,662490134,,662490134,PN,5910,07/05/2014,
INSERTED DETAIL,Resources & Corporate Governance ,Garage Internal,WVR01,Materials,0303,12719.30,Watson Petroleum,110361,07/08/2014,10205626,TC,195046059,,195046059,PI,15263.16,30/07/2014,
INSERTED DETAIL,Resources & Corporate Governance ,Garage Internal,WVR01,Materials,0303,25296.00,Watson Petroleum,110361,21/08/2014,10206139,TC,195046059,,195046059,PI,30355.2,13/08/2014,
INSERTED DETAIL,Resources & Corporate Governance,Corporate Property R&M,CPA01,R&M External Contractors,0100,563.23,Croxford Electrical Ltd,110451,28/08/2014,10206531,CS,307440876,7751876,307 4408 76,PN,675.88,20/08/2014,
INSERTED DETAIL,Resources & Corporate Governance,Corporate Property R&M,CPA01,R&M External Contractors,0100,709.02,Croxford Electrical Ltd,110451,28/08/2014,10206532,CS,307440876,7751876,307 4408 76,PN,850.82,20/08/2014,
INSERTED DETAIL,Economy Development & Culture,Visitor Centre,VSC00,R&M External Contractors,0100,1000.00,Graham Ibbeson Sculpture Ltd,111295,14/08/2014,10205846,TC,436611166,,436611166,PN,1200,06/08/2014,
INSERTED DETAIL,Sustainable Environment,Crematorium,CRM00,External Contractor & Operator,0742,1500.00,P D Timms,111508,21/08/2014,10206392,TC,420836274,,420836274,PI,1800,18/08/2014,
INSERTED DETAIL,Resources & Corporate Governance ,Domestic Waste Collection,WWC00,Agency Staff,0003,661.68,Extra Personnel Limited,112996,21/08/2014,10205468,TC,559685183,,559685183,PI,794.02,28/07/2014,
INSERTED DETAIL,Resources & Corporate Governance ,Trade Waste Collection,WWC01,Agency Staff,0003,668.64,Extra Personnel Limited,112996,21/08/2014,10205667,TC,559685183,,559685183,PI,802.37,01/08/2014,
INSERTED DETAIL,Resources & Corporate Governance ,Domestic Waste Collection,WWC00,Agency Staff,0003,550.24,Extra Personnel Limited,112996,21/08/2014,10206091,TC,559685183,,559685183,PI,1420.87,12/08/2014,
INSERTED DETAIL,Resources & Corporate Governance ,Trade Waste Collection,WWC01,Agency Staff,0003,633.82,Extra Personnel Limited,112996,21/08/2014,10206091,TC,559685183,,559685183,PI,1420.87,12/08/2014,
INSERTED DETAIL,Economy Development & Culture,Visitor Centre,VSC00,Events Tickets - Zero Rated,1405,637.20,Catteralls Coach and Travel Services,113835,28/08/2014,10206672,TC,3760050457,1698062,3760050457,PN,637.2,22/08/2014,
INSERTED DETAIL,Economy Development & Culture,AGM Exhibitions/Outreach,AGM02,Other Miscellaneous Expenses,0444,568.72,J K Timber & Packing Ltd,114131,07/08/2014,10205652,TC,536609922,,536609922,PI,682.46,01/08/2014,
INSERTED DETAIL,Housing Revenue Account ,Unplanned Maintenance and Repair,UMR00,R&M External Contractors,0100,1239.65,Temple Lifts Ltd,114738,14/08/2014,10205946,CS,523715950,2388497,523715950,PN,1487.58,08/08/2014,
INSERTED DETAIL,Capital Programme ,Lifts Refurbishment,HCE27,Capital Contract Payments,5000,34650.00,Temple Lifts Ltd,114738,28/08/2014,10206868,CS,523715950,2388497,523715950,PN,41580,27/08/2014,
INSERTED DETAIL,Sustainable Inclusive Communities,CL Grants,CGS00,Grants To Voluntary Organisations,0720,1500.00,Wolston Leisure & Community Centre,117117,07/08/2014,10205408,TC,,,,PN,1500,29/07/2014,
INSERTED DETAIL,Sustainable Environment ,Parks,PKS00,External Contractor & Operator,0742,2945.00,Historical Promotions & Event Management,118695,28/08/2014,10205787,TC,786345881,,786345881,PI,3534,06/08/2014,
INSERTED DETAIL,Resources & Corporate Governance,Corporate Property Central Utilities,CPA02,Electricity,0130,1119.36,Southern Electric,118976,21/08/2014,10206089,TC,553769603,,553769603,PN,3409.34,12/08/2014,
INSERTED DETAIL,Resources & Corporate Governance ,WSU Depot,WDP00,Electricity,0130,1696.57,Southern Electric,118976,21/08/2014,10206089,TC,553769603,,553769603,PN,3409.34,12/08/2014,
INSERTED DETAIL,Resources & Corporate Governance,Corporate Property Central Utilities,CPA02,Electricity,0130,9240.89,Southern Electric,118976,21/08/2014,10206249,TC,553769603,,553769603,PN,12469.94,15/08/2014,
INSERTED DETAIL,Sustainable Environment,Crematorium,CRM00,Electricity,0130,1174.64,Southern Electric,118976,21/08/2014,10206249,TC,553769603,,553769603,PN,12469.94,15/08/2014,
INSERTED DETAIL,Resources & Corporate Governance ,Toilet Cleaning,WBC01,Agency Staff,0003,446.20,G Staff,120173,21/08/2014,10205631,TC,660845719,,660 845 719,PI,1736.9,31/07/2014,
INSERTED DETAIL,Resources & Corporate Governance ,Street Cleansing,WSC00,Agency Staff,0003,151.20,G Staff,120173,21/08/2014,10205631,TC,660845719,,660 845 719,PI,1736.9,31/07/2014,
INSERTED DETAIL,Resources & Corporate Governance ,Domestic Waste Collection,WWC00,Agency Staff,0003,850.02,G Staff,120173,21/08/2014,10205631,TC,660845719,,660 845 719,PI,1736.9,31/07/2014,
INSERTED DETAIL,Resources & Corporate Governance ,Street Cleansing,WSC00,Agency Staff,0003,750.22,G Staff,120173,21/08/2014,10206007,TC,660845719,,660 845 719,PI,2140.03,11/08/2014,
INSERTED DETAIL,Resources & Corporate Governance ,Domestic Waste Collection,WWC00,Agency Staff,0003,1033.14,G Staff,120173,21/08/2014,10206007,TC,660845719,,660 845 719,PI,2140.03,11/08/2014,
INSERTED DETAIL,Resources & Corporate Governance ,Democratic Services,DEM10,Training fees,0011,1260.15,Nelson Training,120218,21/08/2014,10205409,TC,781446904,,781446904,PN,1512.18,29/07/2014,
INSERTED DETAIL,Resources & Corporate Governance ,ITC & Support Services,CIS10,Software Maintenance,0374,1794.00,Jadu Ltd,120407,21/08/2014,10205710,TC,738720516,4643244,738720516,PN,2152.8,01/08/2014,
INSERTED DETAIL,Economy Development & Culture,Visitor Centre,VSC00,Events Tickets - Standard Rated,1404,3854.75,Warwickshire County Cricket Club,120851,28/08/2014,10206527,TC,110677982,,110677982,PN,3854.75,20/08/2014,
INSERTED DETAIL,Housing Revenue Account ,Voids & Allocations Team,MAN24,Agency Staff,0003,1134.00,Venn Group Recruitment Solutions,121594,07/08/2014,10205594,TC,766711704,,766711704,PN,1360.8,31/07/2014,
INSERTED DETAIL,Housing Revenue Account ,Voids & Allocations Team,MAN24,Agency Staff,0003,1115.52,Venn Group Recruitment Solutions,121594,14/08/2014,10206037,TC,766711704,,766711704,PN,1338.62,12/08/2014,
INSERTED DETAIL,Housing Revenue Account ,Voids & Allocations Team,MAN24,Agency Staff,0003,1155.28,Venn Group Recruitment Solutions,121594,21/08/2014,10206326,TC,766711704,,766711704,PN,1386.34,15/08/2014,
INSERTED DETAIL,Capital Programme ,Housing Management System,HCE08,Capital Contract Payments,5000,750.00,Northgate Information Solutions UK Ltd,121606,21/08/2014,10205638,TC,207588545,,207588545,PI,900,31/07/2014,
INSERTED DETAIL,Resources & Corporate Governance ,Maintenance of Customer Services Systems,CIS21,Software Maintenance,0374,751.83,Northgate Information Solutions UK Ltd,121606,21/08/2014,10206307,TC,207588545,,207588545,PN,902.2,15/08/2014,
INSERTED DETAIL,Resources & Corporate Governance ,Maintenance of Customer Services Systems,CIS21,Software Maintenance,0374,1879.60,Northgate Information Solutions UK Ltd,121606,21/08/2014,10206444,TC,207588545,,207588545,PN,2255.52,19/08/2014,
INSERTED DETAIL,Resources & Corporate Governance ,ITC & Support Services,CIS10,Software Purchase,0373,750.00,Northgate Information Solutions UK Ltd,121606,28/08/2014,10206780,TC,207588545,,207588545,PI,900,26/08/2014,
INSERTED DETAIL,Resources & Corporate Governance ,Central Telephone Service,TEL00,Telephone Expenses,0371,1195.92,Cable & Wireless/T/A Vodafone,123224,14/08/2014,10206078,TC,569953277,,569953277,PN,1435.1,12/08/2014,
INSERTED DETAIL,Resources & Corporate Governance ,Domestic Waste Collection,WWC00,External Printing,0352,2798.00,Krishna Enterprises Ltd,123590,28/08/2014,10205610,TC,844218628,,844218628,PI,2798,31/07/2014,
INSERTED DETAIL,Resources & Corporate Governance ,"Communications, Consultation and Information Team",BTR20,Publicity & Marketing,0377,1400.00,Krishna Enterprises Ltd,123590,07/08/2014,10205643,TC,844218628,,844218628,PI,1680,31/07/2014,
INSERTED DETAIL,Resources & Corporate Governance ,"Communications, Consultation and Information Team",BTR20,Publicity & Marketing,0377,450.00,Krishna Enterprises Ltd,123590,14/08/2014,10206000,TC,844218628,,844218628,PI,540,08/08/2014,
INSERTED DETAIL,Resources & Corporate Governance ,Garage Internal,WVR01,Materials,0303,552.84,Shell U.K. Oil Products Limited,125672,14/08/2014,10205859,TC,235763255,,235 763 255,PN,663.39,06/08/2014,
INSERTED DETAIL,Sustainable Environment,Regulatory Services,REG00,Software/Equipment Licences,0379,1093.41,Airwave Solutions Limited,126436,07/08/2014,10205717,TC,778603785,,778603785,PN,1312.09,01/08/2014,
INSERTED DETAIL,Resources & Corporate Governance ,Electoral Registration,ERG00,External Printing,0352,3890.92,Print.UK.Com,129503,14/08/2014,10205551,TC,584533812,2691346,584533812,PN,4669.11,29/07/2014,
INSERTED DETAIL,Resources & Corporate Governance ,Electoral Registration,ERG00,Postage & Distribution,0370,19663.44,Print.UK.Com,129503,14/08/2014,10205552,TC,584533812,2691346,584533812,PN,23596.13,29/07/2014,
INSERTED DETAIL,Resources & Corporate Governance ,ITC & Support Services,CIS10,New Equipment,0300,165.00,Corporate Direct (Europe) Ltd,129644,14/08/2014,10206004,TC,864463794,,864463794,PI,894.29,11/08/2014,
INSERTED DETAIL,Resources & Corporate Governance,Central Business Support Services,CSS15,New Equipment,0300,580.24,Corporate Direct (Europe) Ltd,129644,14/08/2014,10206004,TC,864463794,,864463794,PI,894.29,11/08/2014,
INSERTED DETAIL,Housing Revenue Account ,Supervision and Management General,MAN00,Movement Incentives,0454,500.00,REDACTED PERSONAL DATA,130798,28/08/2014,10206713,NT,,,,PN,500,26/08/2014,
INSERTED DETAIL,Sustainable Environment ,Parks,PKS00,R&M External Contractors,0100,2780.00,I D Welding & Fabrications,131407,21/08/2014,10206394,CS,687567859,,687567859,PI,3336,18/08/2014,
INSERTED DETAIL,Sustainable Environment ,Parks,PKS00,R&M External Contractors,0100,550.00,I D Welding & Fabrications,131407,28/08/2014,10206395,CS,687567859,,687567859,PI,804,18/08/2014,
INSERTED DETAIL,Sustainable Environment ,Parks,PKS00,Maintenance of Equipment,0301,120.00,I D Welding & Fabrications,131407,28/08/2014,10206395,CS,687567859,,687567859,PI,804,18/08/2014,
INSERTED DETAIL,Sustainable Environment ,Parks,PKS00,R&M External Contractors,0100,1375.00,I D Welding & Fabrications,131407,28/08/2014,10206396,CS,687567859,,687567859,PI,1650,18/08/2014,
INSERTED DETAIL,Resources & Corporate Governance ,IT Procurement,CMP00,IT Capital Expenditure,5025,3025.00,Toplevel Computing Ltd,131444,21/08/2014,10205651,TC,682062048,,682062048,PI,3630,01/08/2014,
INSERTED DETAIL,Economy Development & Culture,Car Parks General,CPK01,Cash Collection,0744,942.56,Jade Security Services Ltd,131711,21/08/2014,10206066,TC,642505654,,642505654,PN,1131.07,12/08/2014,
INSERTED DETAIL,Economy Development & Culture,Decrim. of Car Parking on street parking,DPE02,Cash Collection,0744,772.68,Jade Security Services Ltd,131711,21/08/2014,10206067,TC,642505654,,642505654,PN,927.22,12/08/2014,
INSERTED DETAIL,Housing Revenue Account ,Unplanned Maintenance and Repair,UMR00,R&M External Contractors,0100,1054.88,Wilson Electrics,132051,07/08/2014,10205712,TC,459933888,4392261,459933888,PN,1265.86,01/08/2014,
INSERTED DETAIL,Economy Development & Culture,Town Centre CCTV and Management,TVM00,Other Agencies,0734,20739.58,Rugby First Ltd - BID,133176,14/08/2014,10206022,TC,874675571,,874675571,PN,24887.5,12/08/2014,
INSERTED DETAIL,Economy Development & Culture,Town Centre CCTV and Management,TVM00,Other Agencies,0734,20739.58,Rugby First Ltd - BID,133176,14/08/2014,10206055,TC,874675571,,874675571,PN,24887.5,12/08/2014,
INSERTED DETAIL,Economy Development & Culture,Town Centre CCTV and Management,TVM00,Other Agencies,0734,1678.93,Rugby First Ltd - BID,133176,21/08/2014,10206366,TC,874675571,,874675571,PN,2014.72,15/08/2014,
INSERTED DETAIL,Economy Development & Culture,Car Parks General,CPK01,Other Agencies,0734,269.90,Chipside Limited,133289,14/08/2014,10204963,TC,812080569,4049461,812080569,PN,1619.4,15/07/2014,
INSERTED DETAIL,Economy Development & Culture,Decrim. of Car Parking on street parking,DPE02,Other Agencies,0734,1079.60,Chipside Limited,133289,14/08/2014,10204963,TC,812080569,4049461,812080569,PN,1619.4,15/07/2014,
INSERTED DETAIL,Economy Development & Culture,Car Parks General,CPK01,Other Agencies,0734,112.30,Chipside Limited,133289,21/08/2014,10206302,TC,812080569,4049461,812080569,PN,673.8,15/08/2014,
INSERTED DETAIL,Economy Development & Culture,Decrim. of Car Parking on street parking,DPE02,Other Agencies,0734,449.20,Chipside Limited,133289,21/08/2014,10206302,TC,812080569,4049461,812080569,PN,673.8,15/08/2014,
INSERTED DETAIL,Sustainable Environment ,Parks,PKS00,External Contractor & Operator,0742,4515.00,Easy-gate Ltd,133591,21/08/2014,10205611,TC,737552122,3837882,737552122,PI,5418,31/07/2014,
INSERTED DETAIL,Resources & Corporate Governance,Housing Maintenance,WHM00,Agency Staff,0003,590.15,Community Resourcing,133778,28/08/2014,10205597,TC,769244493,4123649,769244493,PN,708.18,30/07/2014,
INSERTED DETAIL,Resources & Corporate Governance,Housing Maintenance,WHM00,Agency Staff,0003,549.82,Community Resourcing,133778,21/08/2014,10205598,TC,769244493,4123649,769244493,PN,659.78,30/07/2014,
INSERTED DETAIL,Resources & Corporate Governance,Housing Maintenance,WHM00,Agency Staff,0003,563.14,Community Resourcing,133778,21/08/2014,10205599,TC,769244493,4123649,769244493,PN,675.77,30/07/2014,
INSERTED DETAIL,Resources & Corporate Governance,Housing Maintenance,WHM00,Agency Staff,0003,553.15,Community Resourcing,133778,21/08/2014,10205600,TC,769244493,4123649,769244493,PN,663.78,30/07/2014,
INSERTED DETAIL,Resources & Corporate Governance,Housing Maintenance,WHM00,Agency Staff,0003,448.50,Community Resourcing,133778,21/08/2014,10206038,TC,769244493,4123649,769244493,PN,538.2,12/08/2014,
INSERTED DETAIL,Resources & Corporate Governance,Housing Maintenance,WHM00,Agency Staff,0003,590.15,Community Resourcing,133778,21/08/2014,10206039,TC,769244493,4123649,769244493,PN,708.18,12/08/2014,
INSERTED DETAIL,Resources & Corporate Governance,Housing Maintenance,WHM00,Agency Staff,0003,549.82,Community Resourcing,133778,21/08/2014,10206040,TC,769244493,4123649,769244493,PN,659.78,12/08/2014,
INSERTED DETAIL,Resources & Corporate Governance,Housing Maintenance,WHM00,Agency Staff,0003,549.82,Community Resourcing,133778,21/08/2014,10206324,TC,769244493,4123649,769244493,PN,659.78,15/08/2014,
INSERTED DETAIL,Resources & Corporate Governance,Housing Maintenance,WHM00,Agency Staff,0003,553.15,Community Resourcing,133778,21/08/2014,10206325,TC,769244493,4123649,769244493,PN,663.78,14/08/2014,
INSERTED DETAIL,Housing Revenue Account ,Repainting Schemes,UMR02,R&M External Contractors,0100,38303.71,Roy Hankinson Ltd,133885,21/08/2014,10206448,CS,677318110,3226768,677318110,PN,45964.45,11/08/2014,
INSERTED DETAIL,Housing Revenue Account ,Unplanned Maintenance and Repair,UMR00,R&M External Contractors,0100,2547.84,Sunfish Services Ltd,133886,14/08/2014,10205960,CS,845393893,,845393893,PN,3057.41,08/08/2014,
INSERTED DETAIL,Economy Development & Culture,Car Parks General,CPK01,Other Agencies,0734,280.00,24181 TEC,133967,14/08/2014,10206124,TC,,,,PN,1400,08/08/2014,
INSERTED DETAIL,Economy Development & Culture,Decrim. of Car Parking on street parking,DPE02,Other Agencies,0734,1120.00,24181 TEC,133967,14/08/2014,10206124,TC,,,,PN,1400,08/08/2014,
INSERTED DETAIL,Economy Development & Culture,Car Parks General,CPK01,Other Consumables,0351,840.83,Darrall & Dodd Print Limited,135645,21/08/2014,10205971,TC,897301203,5990791,897301203,PN,5044.97,08/08/2014,
INSERTED DETAIL,Economy Development & Culture,Decrim. of Car Parking on street parking,DPE02,Other Consumables,0351,3363.31,Darrall & Dodd Print Limited,135645,21/08/2014,10205971,TC,897301203,5990791,897301203,PN,5044.97,08/08/2014,
INSERTED DETAIL,Housing Revenue Account ,Alfred Green Close AP,AGP01,Electricity,0130,607.61,Southern Electric,135653,14/08/2014,10206059,TC,,,,PN,4143.84,12/08/2014,
INSERTED DETAIL,Housing Revenue Account ,John Thwaites Close AP,AGP08,Electricity,0130,269.15,Southern Electric,135653,14/08/2014,10206059,TC,,,,PN,4143.84,12/08/2014,
INSERTED DETAIL,Housing Revenue Account ,Stacey Court AP,AGP12,Electricity,0130,192.48,Southern Electric,135653,14/08/2014,10206059,TC,,,,PN,4143.84,12/08/2014,
INSERTED DETAIL,Housing Revenue Account ,Tanser Court AP,AGP17,Electricity,0130,1158.34,Southern Electric,135653,14/08/2014,10206059,TC,,,,PN,4143.84,12/08/2014,
INSERTED DETAIL,Housing Revenue Account ,Eliot Court AP,AGP25,Electricity,0130,223.05,Southern Electric,135653,14/08/2014,10206059,TC,,,,PN,4143.84,12/08/2014,
INSERTED DETAIL,Housing Revenue Account ,Hirst Close AP,AGP33,Electricity,0130,246.30,Southern Electric,135653,14/08/2014,10206059,TC,,,,PN,4143.84,12/08/2014,
INSERTED DETAIL,Housing Revenue Account ,Assheton Close AP,AGP36,Electricity,0130,125.15,Southern Electric,135653,14/08/2014,10206059,TC,,,,PN,4143.84,12/08/2014,
INSERTED DETAIL,Housing Revenue Account ,Deepmore Road/Lytham Road AP,AGP42,Electricity,0130,494.30,Southern Electric,135653,14/08/2014,10206059,TC,,,,PN,4143.84,12/08/2014,
INSERTED DETAIL,Housing Revenue Account ,Edmondson Close Dunchurch AP,AGP44,Electricity,0130,292.57,Southern Electric,135653,14/08/2014,10206059,TC,,,,PN,4143.84,12/08/2014,
INSERTED DETAIL,Housing Revenue Account ,Harold Cox Place AP,AGP51,Electricity,0130,152.96,Southern Electric,135653,14/08/2014,10206059,TC,,,,PN,4143.84,12/08/2014,
INSERTED DETAIL,Housing Revenue Account ,Parkfield Road/Lea Crescent AP,AGP71,Electricity,0130,-28.52,Southern Electric,135653,14/08/2014,10206059,TC,,,,PN,4143.84,12/08/2014,
INSERTED DETAIL,Housing Revenue Account ,Miscellaneous AP,AGP99,Electricity,0130,21.30,Southern Electric,135653,14/08/2014,10206059,TC,,,,PN,4143.84,12/08/2014,
INSERTED DETAIL,Housing Revenue Account ,Supervision and Management General,MAN00,Electricity,0130,26.47,Southern Electric,135653,14/08/2014,10206059,TC,,,,PN,4143.84,12/08/2014,
INSERTED DETAIL,Sustainable Inclusive Communities,Housing Options Team,HOT00,Agency Staff,0003,1059.50,Morgan Hunt UK Ltd,136143,21/08/2014,10206285,TC,927120837,4349535,927120837,PN,1271.4,15/08/2014,
INSERTED DETAIL,,Balance Sheet,BS,Car Loan Scheme,9261,10617.00,Wycliffe Rugby,136394,28/08/2014,10206688,NT,,,,PN,10617,26/08/2014,
INSERTED DETAIL,Capital Programme ,Disabled Adaptations,HCR01,Capital Contract Payments,5000,3059.50,Multicare,136662,07/08/2014,10205697,TC,307306193,,307 3061 93,PN,3671.4,30/07/2014,
INSERTED DETAIL,Sustainable Environment ,Burglary,CAD03,Development Activities,0450,3070.00,Solon Security Ltd,137493,21/08/2014,10206220,TC,656049522,3065075,656049522,PI,3684,14/08/2014,
INSERTED DETAIL,Economy Development & Culture,AGM Education,AGM03,Other Miscellaneous Expenses,0444,600.00,Guardrobe,138844,14/08/2014,10206206,TC,,,,PN,600,13/08/2014,
INSERTED DETAIL,Resources & Corporate Governance ,Domestic Waste Collection,WWC00,Vehicle Repair and Maintenance,0200,1215.36,Midlands Truck & Van Ltd,140322,14/08/2014,10205669,TC,243611193,7492514,243 6111 93,PI,1458.43,01/08/2014,
INSERTED DETAIL,Resources & Corporate Governance ,Domestic Waste Collection,WWC00,Vehicle Repair and Maintenance,0200,699.93,Midlands Truck & Van Ltd,140322,14/08/2014,10205670,TC,243611193,7492514,243 6111 93,PI,839.92,01/08/2014,
INSERTED DETAIL,Sustainable Environment ,Parks,PKS00,External Contractor & Operator,0742,767.25,StoneWall Security Ltd,140775,14/08/2014,10206120,TC,937387578,6587546,937387578,PN,920.7,07/08/2014,
INSERTED DETAIL,Resources & Corporate Governance ,ITC & Support Services,CIS10,Hardware Maintenance,0376,727.00,Enforce Technology Ltd,142074,21/08/2014,10206368,TC,806518825,4481611,806518825,PI,872.4,15/08/2014,
INSERTED DETAIL,Resources & Corporate Governance ,Electoral Registration,ERG00,Software Purchase,0373,2000.00,Xpress Software Solutions Ltd,143411,21/08/2014,10205927,TC,771293714,,771293714,PI,2400,08/08/2014,
INSERTED DETAIL,Sustainable Environment ,Parks,PKS00,R&M External Contractors,0100,1035.00,Fountains Direct Limited,144391,28/08/2014,10205612,TC,641488624,3039739,641 4886 24,PI,1242,31/07/2014,
INSERTED DETAIL,Resources & Corporate Governance ,Executive Director,CEX10,Conference & Seminar Fees,0401,495.00,Local Government Association,144471,28/08/2014,10206554,TC,676078107,,676078107,PI,594,20/08/2014,
INSERTED DETAIL,Resources & Corporate Governance ,Executive Director,CEX10,Training fees,0011,495.00,Local Government Association,144471,28/08/2014,10206555,TC,676078107,,676078107,PI,594,20/08/2014,
INSERTED DETAIL,Resources & Corporate Governance ,Executive Director,CEX10,Conference & Seminar Fees,0401,495.00,Local Government Association,144471,28/08/2014,10206613,TC,676078107,,676078107,PN,594,22/08/2014,
INSERTED DETAIL,Resources & Corporate Governance ,Executive Director,CEX10,Conference & Seminar Fees,0401,495.00,Local Government Association,144471,28/08/2014,10206614,TC,676078107,,676078107,PN,594,22/08/2014,
INSERTED DETAIL,Resources & Corporate Governance ,Executive Director,CEX10,Conference & Seminar Fees,0401,495.00,Local Government Association,144471,28/08/2014,10206615,TC,676078107,,676078107,PN,594,22/08/2014,
INSERTED DETAIL,Economy Development & Culture,Car Parks General,CPK01,Other Agencies,0734,221.65,PATROL,144963,21/08/2014,10206458,TC,,,,PN,1108.25,18/08/2014,
INSERTED DETAIL,Economy Development & Culture,Decrim. of Car Parking on street parking,DPE02,Other Agencies,0734,886.60,PATROL,144963,21/08/2014,10206458,TC,,,,PN,1108.25,18/08/2014,
INSERTED DETAIL,Housing Revenue Account ,Control Centre CCTV,CCE01,External Contractor & Operator,0742,15574.92,Securitas Security Personnel Ltd,145079,28/08/2014,10206734,TC,603175864,1062876,603175864,PN,18689.9,26/08/2014,
INSERTED DETAIL,Sustainable Environment ,Parks,PKS00,Materials,0303,720.00,Pitchworks Ltd,145118,21/08/2014,10205121,TC,757513121,3961972,757513121,PI,864,18/07/2014,
INSERTED DETAIL,Resources & Corporate Governance ,Grounds Maintenance,WGM00,Materials,0303,1451.55,Logic Street & Park Scene,145331,07/08/2014,10205637,TC,,,,PI,3483.72,31/07/2014,
INSERTED DETAIL,Capital Programme ,Open Spaces Refurbishment,LEI08,Capital Contract Payments,5000,1451.55,Logic Street & Park Scene,145331,07/08/2014,10205637,TC,,,,PI,3483.72,31/07/2014,
INSERTED DETAIL,Resources & Corporate Governance,Housing Maintenance,WHM00,Agency Staff,0003,2152.55,Blue Arrow Limited,145492,21/08/2014,10205745,TC,665416130,641659,665416130,PI,6406.76,06/08/2014,
INSERTED DETAIL,Resources & Corporate Governance ,Street Cleansing,WSC00,Agency Staff,0003,789.22,Blue Arrow Limited,145492,21/08/2014,10205745,TC,665416130,641659,665416130,PI,6406.76,06/08/2014,
INSERTED DETAIL,Resources & Corporate Governance ,Domestic Waste Collection,WWC00,Agency Staff,0003,2397.20,Blue Arrow Limited,145492,21/08/2014,10205745,TC,665416130,641659,665416130,PI,6406.76,06/08/2014,
INSERTED DETAIL,Resources & Corporate Governance,Housing Maintenance,WHM00,Agency Staff,0003,2493.80,Blue Arrow Limited,145492,21/08/2014,10206101,TC,665416130,641659,665416130,PI,6989.16,12/08/2014,
INSERTED DETAIL,Resources & Corporate Governance ,Street Cleansing,WSC00,Agency Staff,0003,956.81,Blue Arrow Limited,145492,21/08/2014,10206101,TC,665416130,641659,665416130,PI,6989.16,12/08/2014,
INSERTED DETAIL,Resources & Corporate Governance ,Domestic Waste Collection,WWC00,Agency Staff,0003,2266.05,Blue Arrow Limited,145492,21/08/2014,10206101,TC,665416130,641659,665416130,PI,6989.16,12/08/2014,
INSERTED DETAIL,Resources & Corporate Governance ,Trade Waste Collection,WWC01,Agency Staff,0003,107.64,Blue Arrow Limited,145492,21/08/2014,10206101,TC,665416130,641659,665416130,PI,6989.16,12/08/2014,
INSERTED DETAIL,Resources & Corporate Governance,Housing Maintenance,WHM00,Agency Staff,0003,2538.04,Blue Arrow Limited,145492,21/08/2014,10206378,TC,665416130,641659,665416130,PI,5833.43,15/08/2014,
INSERTED DETAIL,Resources & Corporate Governance ,Street Cleansing,WSC00,Agency Staff,0003,751.13,Blue Arrow Limited,145492,21/08/2014,10206378,TC,665416130,641659,665416130,PI,5833.43,15/08/2014,
INSERTED DETAIL,Resources & Corporate Governance ,Domestic Waste Collection,WWC00,Agency Staff,0003,1572.02,Blue Arrow Limited,145492,21/08/2014,10206378,TC,665416130,641659,665416130,PI,5833.43,15/08/2014,
INSERTED DETAIL,Sustainable Environment ,Parks,PKS00,External Contractor & Operator,0742,1125.00,Nortoft Partnerships Ltd,145573,28/08/2014,10206466,TC,747791777,3903741,747791777,PI,1350,15/08/2014,
INSERTED DETAIL,Economy Development & Culture,AGM Conservation/Documentation,AGM01,Software Maintenance,0374,1148.16,Axiell ALM Ltd,145706,28/08/2014,10206735,TC,610506978,1607548,610506978,PN,1377.79,26/08/2014,
INSERTED DETAIL,Resources & Corporate Governance ,Legal Services,DEM20,External Legal Costs,0741,1000.00,HMCTS,145933,14/08/2014,10206122,NT,,,,PN,1000,08/08/2014,
INSERTED DETAIL,Sustainable Environment ,Land Drainage General,LDR00,External Contractor & Operator,0742,469.75,S F & A J Deeming,146227,28/08/2014,10206689,TC,,,,PN,563.7,22/08/2014,
INSERTED DETAIL,Sustainable Environment ,Parks,PKS00,R&M External Contractors,0100,771.80,UVS Sign & Design Ltd,146676,14/08/2014,10206003,TC,992515884,7160151,992515884,PI,926.16,11/08/2014,
INSERTED DETAIL,Resources & Corporate Governance ,Retired Employees,RET00,Employers' Superannuation Contribution,0002,41500.00,WCC Pension Fund,146914,21/08/2014,10206253,NT,,,,PN,41500,15/08/2014,
INSERTED DETAIL,Resources & Corporate Governance ,Retired Employees,RET00,Additional Pension Payments,0014,11330.61,WCC Pension Fund,146914,21/08/2014,10206344,NT,,,,PN,11330.61,15/08/2014,
INSERTED DETAIL,Resources & Corporate Governance,Central Business Support Services,CSS15,Postage & Distribution,0370,899.09,TNT Post Midlands Ltd,146983,28/08/2014,10206715,TC,991265787,,991265787,PN,1078.91,26/08/2014,
INSERTED DETAIL,Resources & Corporate Governance,Central Business Support Services,CSS15,Postage & Distribution,0370,520.75,TNT Post Midlands Ltd,146983,28/08/2014,10206720,TC,991265787,,991265787,PN,624.9,26/08/2014,
INSERTED DETAIL,Resources & Corporate Governance,Housing Maintenance,WHM00,External Contractor & Operator,0742,2987.00,Intelligent Disabled Solutions Ltd,147081,14/08/2014,10205947,CS,935789270,6585199,935789270,PN,3584.4,08/08/2014,
INSERTED DETAIL,Resources & Corporate Governance,Housing Maintenance,WHM00,External Contractor & Operator,0742,3160.27,Intelligent Disabled Solutions Ltd,147081,14/08/2014,10205948,CS,935789270,6585199,935789270,PN,3792.32,08/08/2014,
INSERTED DETAIL,Resources & Corporate Governance,Housing Maintenance,WHM00,External Contractor & Operator,0742,4500.00,K A Cooke Limited,147120,21/08/2014,10206354,CS,,7347815,,PN,4500,15/08/2014,
INSERTED DETAIL,Resources & Corporate Governance,Housing Maintenance,WHM00,External Contractor & Operator,0742,1183.00,K A Cooke Limited,147120,21/08/2014,10206355,CS,,7347815,,PN,1183,15/08/2014,
INSERTED DETAIL,Resources & Corporate Governance,Housing Maintenance,WHM00,External Contractor & Operator,0742,960.00,K A Cooke Limited,147120,21/08/2014,10206357,CS,,7347815,,PN,960,15/08/2014,
INSERTED DETAIL,Resources & Corporate Governance,Housing Maintenance,WHM00,External Contractor & Operator,0742,2660.00,K A Cooke Limited,147120,21/08/2014,10206358,CS,,7347815,,PN,2660,15/08/2014,
INSERTED DETAIL,Resources & Corporate Governance,Housing Maintenance,WHM00,External Contractor & Operator,0742,800.00,K A Cooke Limited,147120,21/08/2014,10206359,CS,,7347815,,PN,800,15/08/2014,
INSERTED DETAIL,Resources & Corporate Governance,Housing Maintenance,WHM00,External Contractor & Operator,0742,1010.00,K A Cooke Limited,147120,28/08/2014,10206651,CS,,7347815,,PN,1010,14/08/2014,
INSERTED DETAIL,Resources & Corporate Governance ,Domestic Waste Collection,WWC00,External Contractor & Operator,0742,600.00,James Baxter Haulage Ltd,147159,21/08/2014,10205829,TC,620070986,,620070986,PN,720,06/08/2014,
INSERTED DETAIL,Economy Development & Culture,AGM Education,AGM03,Other Miscellaneous Expenses,0444,856.40,Anna Conomos,147320,14/08/2014,10206041,TC,,,,PN,856.4,12/08/2014,
INSERTED DETAIL,Resources & Corporate Governance ,Domestic Waste Collection,WWC00,Contract Hire,0220,950.00,Trash UK Limited,147379,21/08/2014,10205428,TC,738802807,3862427,738802807,PI,1140,25/07/2014,
INSERTED DETAIL,Resources & Corporate Governance ,Domestic Waste Collection,WWC00,Contract Hire,0220,950.00,Trash UK Limited,147379,21/08/2014,10205429,TC,738802807,3862427,738802807,PI,1140,25/07/2014,
INSERTED DETAIL,Resources & Corporate Governance ,Domestic Waste Collection,WWC00,Contract Hire,0220,550.00,Trash UK Limited,147379,21/08/2014,10205430,TC,738802807,3862427,738802807,PI,660,25/07/2014,
INSERTED DETAIL,Resources & Corporate Governance ,Domestic Waste Collection,WWC00,Contract Hire,0220,950.00,Trash UK Limited,147379,21/08/2014,10205431,TC,738802807,3862427,738802807,PI,1140,25/07/2014,
INSERTED DETAIL,Resources & Corporate Governance ,Domestic Waste Collection,WWC00,Contract Hire,0220,550.00,Trash UK Limited,147379,28/08/2014,10206607,TC,738802807,3862427,738802807,PN,660,22/08/2014,
INSERTED DETAIL,Resources & Corporate Governance ,Domestic Waste Collection,WWC00,Contract Hire,0220,550.00,Trash UK Limited,147379,28/08/2014,10206608,TC,738802807,3862427,738802807,PN,660,22/08/2014,
INSERTED DETAIL,Resources & Corporate Governance ,Domestic Waste Collection,WWC00,Contract Hire,0220,550.00,Trash UK Limited,147379,28/08/2014,10206609,TC,738802807,3862427,738802807,PN,660,22/08/2014,
INSERTED DETAIL,Capital Programme ,Disabled Facilities Grant,REN01,Capital Grants,5014,5010.00,Pollards Property Solution,147541,07/08/2014,10205674,TC,,,,PN,5010,31/07/2014,
INSERTED DETAIL,Sustainable Environment ,Parks,PKS00,Maintenance of Equipment,0301,485.00,Gavin Jones (Midlands) Ltd,147569,21/08/2014,10205622,CS,455820147,2109325,455820147,PI,582,30/07/2014,
INSERTED DETAIL,Sustainable Environment ,Parks,PKS00,Maintenance of Equipment,0301,3995.00,Gavin Jones (Midlands) Ltd,147569,28/08/2014,10206698,CS,455820147,2109325,455820147,PI,4794,26/08/2014,
INSERTED DETAIL,Economy Development & Culture,Visitor Centre,VSC00,Purchases for Resale,0305,433.44,Star Editions Ltd,147676,14/08/2014,10206141,TC,922794209,6628133,922794209,PI,520.13,13/08/2014,
INSERTED DETAIL,Resources & Corporate Governance ,Grounds Maintenance,WGM00,Vehicle Repair and Maintenance,0200,1823.81,Tallis Amos Group Limited,147758,28/08/2014,10205635,TC,377274127,,377274127,PN,2188.57,29/07/2014,
INSERTED DETAIL,Resources & Corporate Governance ,Grounds Maintenance,WGM00,Vehicle Repair and Maintenance,0200,439.26,Tallis Amos Group Limited,147758,28/08/2014,10206247,TC,377274127,,377274127,PI,527.11,15/08/2014,
INSERTED DETAIL,Resources & Corporate Governance ,Grounds Maintenance,WGM00,Vehicle Repair and Maintenance,0200,682.06,Tallis Amos Group Limited,147758,28/08/2014,10206486,TC,377274127,,377274127,PI,818.47,18/08/2014,
INSERTED DETAIL,Resources & Corporate Governance,Housing Maintenance,WHM00,External Contractor & Operator,0742,506.40,Coventry Garage Doors,147883,28/08/2014,10206617,CS,307274568,,307274568,PN,607.68,22/08/2014,
INSERTED DETAIL,,Balance Sheet,BS,Car Loan Scheme,9261,8913.00,Kirkby Cars,147933,28/08/2014,10206690,NT,,,,PN,8913,26/08/2014,
INSERTED DETAIL,Resources & Corporate Governance ,TREE WORKS,WGM01,Vehicle Repair and Maintenance,0200,30.00,Buxtons Limited,148015,28/08/2014,10206543,TC,421013816,1917849,421 0138 16,PI,642,20/08/2014,
INSERTED DETAIL,Resources & Corporate Governance ,TREE WORKS,WGM01,Materials,0303,10.00,Buxtons Limited,148015,28/08/2014,10206543,TC,421013816,1917849,421 0138 16,PI,642,20/08/2014,
INSERTED DETAIL,Resources & Corporate Governance ,TREE WORKS,WGM01,Tools,0304,495.00,Buxtons Limited,148015,28/08/2014,10206543,TC,421013816,1917849,421 0138 16,PI,642,20/08/2014,
INSERTED DETAIL,Resources & Corporate Governance,Housing Maintenance,WHM00,External Contractor & Operator,0742,592.50,Dean Hudson,148035,07/08/2014,10205857,CS,,,,PN,592.5,06/08/2014,
INSERTED DETAIL,Resources & Corporate Governance,Housing Maintenance,WHM00,External Contractor & Operator,0742,592.50,Dean Hudson,148035,15/08/2014,10206144,CS,,,,PN,592.5,13/08/2014,
INSERTED DETAIL,Resources & Corporate Governance,Housing Maintenance,WHM00,External Contractor & Operator,0742,642.50,Dean Hudson,148035,21/08/2014,10206457,CS,,,,PN,642.5,18/08/2014,
INSERTED DETAIL,Sustainable Environment ,Parks,PKS00,External Contractor & Operator,0742,551.19,Halo FX Limited,148073,28/08/2014,10206470,TC,132070756,7639114,132 0707 56,PI,661.43,19/08/2014,
INSERTED DETAIL,Sustainable Environment ,Parks,PKS00,External Contractor & Operator,0742,1228.73,Halo FX Limited,148073,28/08/2014,10206521,TC,132070756,7639114,132 0707 56,PI,1474.48,19/08/2014,
INSERTED DETAIL,,Balance Sheet,BS,Car Loan Scheme,9261,8995.00,Lutterworth Ford,148225,14/08/2014,10206183,NT,,,,PN,8995,13/08/2014,
INSERTED DETAIL,,Balance Sheet,BS,Car Loan Scheme,9261,-8995.00,Lutterworth Ford,148225,21/08/2014,10206493,NT,,,,PN,-8995,20/08/2014,
INSERTED DETAIL,Resources & Corporate Governance ,Street Cleansing,WSC00,Vehicle Repair and Maintenance,0200,746.46,Clemas & Co Ltd,148440,28/08/2014,10205819,TC,487844191,2199265,487844191,PN,895.75,06/08/2014,
INSERTED DETAIL,Resources & Corporate Governance,Housing Maintenance,WHM00,External Contractor & Operator,0742,4600.00,Garforth Scaffolding Ltd,148530,28/08/2014,10205584,CS,715005772,3606923,715005772,PN,5520,31/07/2014,
INSERTED DETAIL,Sustainable Environment,Crematorium,CRM00,Special Events/Activities,0447,873.00,St Andrews RFC,148785,21/08/2014,10206503,NT,,,,PN,873,19/08/2014,
INSERTED DETAIL,Resources & Corporate Governance ,Domestic Waste Collection,WWC00,Vehicle Repair and Maintenance,0200,425.01,Vicary Plant Spares Limited,148824,28/08/2014,10205907,TC,747802904,3910268,747802904,PI,510.02,06/08/2014,
INSERTED DETAIL,Economy Development & Culture,AGM Exhibitions/Outreach,AGM02,Other Miscellaneous Expenses,0444,1916.00,Michele Walker,148854,14/08/2014,10205949,TC,,,,PN,1916,08/08/2014,
INSERTED DETAIL,Housing Revenue Account ,Unplanned Maintenance and Repair,UMR00,R&M External Contractors,0100,1683.44,Robert Heath Heating Ltd,148858,14/08/2014,10205962,CS,927490989,1773699,927 4909 89,PN,32811.3,08/08/2014,
INSERTED DETAIL,Housing Revenue Account ,Gas Heating Systems,UMR01,R&M External Contractors,0100,24462.94,Robert Heath Heating Ltd,148858,14/08/2014,10205962,CS,927490989,1773699,927 4909 89,PN,32811.3,08/08/2014,
INSERTED DETAIL,Housing Revenue Account ,Repairs and Maintenance - Void works,UMR09,R&M External Contractors,0100,1196.37,Robert Heath Heating Ltd,148858,14/08/2014,10205962,CS,927490989,1773699,927 4909 89,PN,32811.3,08/08/2014,
INSERTED DETAIL,Capital Programme ,Electric to Gas Conversions,HIM04,Capital Contract Payments,5000,700.00,Capita Property & Infrastructure Ltd,148946,14/08/2014,10202878,TC,618184140,2018542,618184140,PN,840,02/06/2014,
INSERTED DETAIL,Resources & Corporate Governance ,Human Resources Centralised Services,RES31,Training fees,0011,850.00,Up Front Training & Coaching,148954,14/08/2014,10205375,TC,,,,PI,850,28/07/2014,
INSERTED DETAIL,Economy Development & Culture,The Benn Hall,BHL00,Purchases for Resale,0305,1211.07,Matthew Clark Wholesale Ltd,148975,21/08/2014,10206546,TC,891557680,2550982,891557680,PI,1453.29,20/08/2014,
INSERTED DETAIL,Resources & Corporate Governance,Housing Maintenance,WHM00,External Contractor & Operator,0742,505.00,D & M Ball Carpets,149023,07/08/2014,10205137,CS,,,,PN,606,18/07/2014,
INSERTED DETAIL,Resources & Corporate Governance,Housing Maintenance,WHM00,External Contractor & Operator,0742,651.00,D & M Ball Carpets,149023,14/08/2014,10205726,CS,,,,PN,781.2,01/08/2014,
INSERTED DETAIL,Resources & Corporate Governance ,Town Hall,OFF00,Contract Cleaning,0170,4195.83,Superclean Services Wothorpe,149153,28/08/2014,10205529,TC,218492943,,218492943,PN,5749.99,29/07/2014,
INSERTED DETAIL,Sustainable Environment ,Parks,PKS00,Contract Cleaning,0170,200.00,Superclean Services Wothorpe,149153,28/08/2014,10205529,TC,218492943,,218492943,PN,5749.99,29/07/2014,
INSERTED DETAIL,Resources & Corporate Governance ,WSU Depot,WDP00,Contract Cleaning,0170,395.83,Superclean Services Wothorpe,149153,28/08/2014,10205529,TC,218492943,,218492943,PN,5749.99,29/07/2014,
INSERTED DETAIL,Housing Revenue Account ,Unplanned Maintenance and Repair,UMR00,R&M External Contractors,0100,120.00,Superclean Services Wothorpe,149153,21/08/2014,10206203,TC,218492943,,218492943,PN,2580,13/08/2014,
INSERTED DETAIL,Housing Revenue Account ,Repairs and Maintenance - Void works,UMR09,R&M External Contractors,0100,2030.00,Superclean Services Wothorpe,149153,21/08/2014,10206203,TC,218492943,,218492943,PN,2580,13/08/2014,
INSERTED DETAIL,Economy Development & Culture,Planning General/Income,PLN00,Training fees,0011,4005.00,CILEx Law School,149188,14/08/2014,10206118,TC,904444834,,904444834,PN,4005,07/08/2014,
INSERTED DETAIL,Economy Development & Culture,Queens Diamond Jubilee Centre,QDJ00,External Contractor & Operator,0742,4339.00,GLL ( Greenwich Leisure Ltd),149240,21/08/2014,10206343,TC,626592225,27793R,626592225,PN,5206.8,15/08/2014,
INSERTED DETAIL,Economy Development & Culture,The Benn Hall,BHL00,Special Events/Activities,0447,700.00,Gag Reflex Ltd,149264,07/08/2014,10205699,TC,923405349,,923405349,PN,840,31/07/2014,
INSERTED DETAIL,Resources & Corporate Governance ,Garage Internal,WVR01,Materials,0303,651.70,Tom Tom International BV,149311,21/08/2014,10206211,TC,273433560,,273433560,PN,651.7,13/08/2014,
INSERTED DETAIL,Economy Development & Culture,Play Projects (revenue),LSD09,Development Activities,0450,450.00,Climb Hire,149379,28/08/2014,10206629,TC,,,,PN,540,22/08/2014,
INSERTED DETAIL,Resources & Corporate Governance ,TREE WORKS,WGM01,Other Miscellaneous Expenses,0444,600.00,Warwickshire County Council,149404,14/08/2014,10206123,NT,,,,PN,600,06/08/2014,
INSERTED DETAIL,Housing Revenue Account ,Unplanned Maintenance and Repair,UMR00,R&M External Contractors,0100,746.93,Close Circuit Security Services Ltd,149426,07/08/2014,10205714,TC,695360895,3543850,695360895,PN,896.32,01/08/2014,
INSERTED DETAIL,Sustainable Environment,Crematorium,CRM00,R&M External Contractors,0100,13387.50,Facultatieve Technologies Limited,149571,14/08/2014,10206112,TC,GB169285327,633222,GB 169 2853 27,PN,16065,07/08/2014,
INSERTED DETAIL,Resources & Corporate Governance ,Human Resources Centralised Services,RES31,Training fees,0011,1536.00,Art of Brilliance Ltd,149617,14/08/2014,10206133,TC,864661490,6538806,864661490,PI,1843.2,13/08/2014,
INSERTED DETAIL,Sustainable Environment,Crematorium,CRM00,Organist Fees,0414,885.00,Tracey Daulman,149686,14/08/2014,10206028,TC,,,,PN,885,12/08/2014,
INSERTED DETAIL,Capital Programme ,Disabled Facilities Grant,REN01,Capital Grants,5014,4100.00,P C Barry Building Contractors,149694,14/08/2014,10206083,TC,881193116,,881193116,PN,4100,12/08/2014,
INSERTED DETAIL,Sustainable Environment,Crematorium,CRM00,External Contractor & Operator,0742,4388.00,A A Gibson,149696,07/08/2014,10205810,TC,,,,PN,4388,06/08/2014,
INSERTED DETAIL,Sustainable Environment,Crematorium,CRM00,New Equipment,0300,1390.00,Dunlop James Flowers,149757,07/08/2014,10205811,TC,,,,PN,1390,06/08/2014,
INSERTED DETAIL,Resources & Corporate Governance,Corporate Property R&M,CPA01,R&M External Contractors,0100,1780.00,H2O Utilities Ltd,149819,14/08/2014,10205789,TC,,2975192,,PI,2136,06/08/2014,
INSERTED DETAIL,Resources & Corporate Governance ,TREE WORKS,WGM01,Signage,0151,270.00,ID Genie,149858,07/08/2014,10204670,TC,998962621,,998962621,PI,1452,09/07/2014,
INSERTED DETAIL,Resources & Corporate Governance ,Highways,WHG00,Signage,0151,540.00,ID Genie,149858,07/08/2014,10204670,TC,998962621,,998962621,PI,1452,09/07/2014,
INSERTED DETAIL,Resources & Corporate Governance,Housing Maintenance,WHM00,Signage,0151,400.00,ID Genie,149858,07/08/2014,10204670,TC,998962621,,998962621,PI,1452,09/07/2014,
INSERTED DETAIL,Resources & Corporate Governance ,Street Cleansing,WSC00,External Contractor & Operator,0742,895.00,Highways Traffic Management Ltd,149888,28/08/2014,10206225,TC,661131960,2305137,661131960,PI,1074,14/08/2014,
INSERTED DETAIL,Resources & Corporate Governance,Corporate Property R&M,CPA01,R&M External Contractors,0100,1267.20,APPS UK LTD,149914,21/08/2014,10206238,TC,904400764,6174205,904400764,PI,1520.64,15/08/2014,
INSERTED DETAIL,Housing Revenue Account ,Supervision and Management General,MAN00,Movement Incentives,0454,500.00,REDACTED PERSONAL DATA,149939,14/08/2014,10206125,NT,,,,PN,500,08/08/2014,
INSERTED DETAIL,Economy Development & Culture,Planning General/Income,PLN00,External Legal Costs,0741,6000.00,Naomi Gilchrist,149940,14/08/2014,10206119,TC,,,,PN,7200,07/08/2014,
INSERTED DETAIL,Resources & Corporate Governance ,Garage Internal,WVR01,New Equipment,0300,6138.00,Maverick Technology (UK) Ltd,149944,28/08/2014,10206229,TC,747475984,3864625,747475984,PI,7365.6,15/08/2014,
INSERTED DETAIL,Sustainable Environment,Crematorium,CRM00,Special Events/Activities,0447,1870.00,Gillendy Catering,149967,21/08/2014,10206502,TC,,,,PN,1870,19/08/2014,
detail,Housing Revenue Account ,Unplanned Maintenance and Repair,UMR00,R&M External Contractors,0100,500.00,JSG Consultancy Ltd,149968,21/08/2014,10206501,TC,728550913,3747349,728550913,PN,600,20/08/2014,
,,Balance Sheet,BS,Accommodation,9550,798.00,Premier Inn,,11/08/2014,33026,,,,,,,
,Sustainable Inclusive Communities,Housing Options Team,HOT00,Accommodation,0140,638.33,Premier Inn,,11/08/2014,33026,,,,,,,
,Sustainable Inclusive Communities,Housing Options Team,HOT00,Accommodation,0140,844.00,Premier Inn,,11/08/2014,33026,,,,,,,
,Capital Programme ,HRA,PCH00,Valuation No.11 Payment,5000,219163.27,Wates Construction,,18/08/2014,32910,,,,,,,
,,Balance Sheet,BS,Cov & Warks Pooling Fund,9476,1406994.00,Cov & Warks Pooling Fund,,18/08/2014,32909,,,,,,,
,,Balance Sheet,BS,Business Rate Retention Scheme payment,9476,2070453,CLG,,19/08/2014,32929,,,,,,,
,,Balance Sheet,BS,Business Rate Retention Scheme payment,9476,414702,WCC County Fund,,19/08/2014,32926,,,,,,,
,Resources & Corporate Governance,General Financial Services,GFS00,Payment Card Costs,445,1206.92,Capita,,28/08/2014,33001,,,,,,,
,Economy Development & Culture,The Benn Hall,BHL00,Purchases for Resale,305,610.43,Booker Ltd,,19/08/2014,32928,,,,,,,
